bitfinex-derivatives/quotes_SOLF0:USTF0_20250830
["timestamp","ask_amount","ask_price","bid_price","bid_amount"]
[1756550214303,2.41913125,202.2,202.11,7.69]
[1756550216212,0.07,202.19,202.11,7.69]
[1756550217409,0.07,202.11,202.06,7.69]
[1756550218910,2.41913125,202.09,202.03,7.69]
[1756550222811,2.41913125,202.05,202.03,7.69]
[1756550223009,0.07,202.04,201.97,4.15236988]
[1756550223312,0.07,202.04,201.98,7.69]
[1756550224609,2.41913125,202.02,201.98,7.69]
[1756550224811,2.41913125,202.02,201.95,7.69]
[1756550225810,2.41913125,201.99,201.95,7.69]
[1756550226210,0.07,201.98,201.91,7.69]
[1756550228212,2.41913125,201.99,201.91,7.69]
[1756550231513,2.41913125,202.1,201.91,7.69]
[1756550231514,2.41913125,202.02,201.91,7.69]
[1756550232015,2.41913125,202.03,201.93,7.74]
[1756550240826,4.16,202.05,201.93,7.74]
[1756550241021,2.41913125,201.97,201.87,7.74]
[1756550243420,0.09,201.96,201.87,7.74]
[1756550243620,2.50913125,201.96,201.87,7.74]
[1756550243819,0.09,201.96,201.87,7.74]
[1756550244522,2.41913125,201.97,201.87,7.74]
[1756550244723,0.09,201.9,201.8,7.74]
[1756550246927,0.09,201.87,201.8,7.74]
[1756550247226,2.50913125,201.85,201.75,7.74]
[1756550250531,2.41913125,201.86,201.75,7.74]
[1756550251026,2.41913125,201.86,201.7,2.41913125]
[1756550251027,2.41913125,201.89,201.77,7.74]
[1756550251227,2.41913125,201.89,201.8,7.74]
[1756550252529,2.50913125,201.92,201.8,7.74]
[1756550253330,0.09,201.92,201.81,7.74]
[1756550259132,2.41913125,201.87,201.81,7.74]
[1756550259538,2.41913125,201.9,201.82,7.72]
[1756550260238,0.09,201.93,201.82,7.72]
[1756550261635,2.41913125,201.94,201.85,7.72]
[1756550263938,0.09,202.02,201.88,7.72]
[1756550264240,2.50913125,202.02,201.91,7.72]
[1756550266538,0.09,202.05,201.94,7.72]
[1756550266743,2.41913125,202.04,201.94,7.72]
[1756550267644,0.09,202.03,201.94,7.72]
[1756550271744,2.41913125,202.04,201.96,7.72]
[1756550272539,0.09,202.05,201.96,7.72]
[1756550272739,2.41913125,202.04,201.96,7.72]
[1756550275149,0.09,202.05,201.96,7.72]
[1756550275349,2.41913125,202.03,201.96,7.72]
[1756550275850,2.50913125,202.03,201.96,7.72]
[1756550277950,0.09,202.03,201.96,7.72]
[1756550278150,2.41913125,202.02,201.96,7.72]
[1756550279743,2.50913125,202.02,201.96,7.72]
[1756550280347,2.41913125,202.02,201.96,7.72]
[1756550280654,29.04913125,202.08,201.97,7.72]
[1756550280953,29.04913125,202.08,201.98,2.41913125]
[1756550281145,29.04913125,202.08,201.99,7.72]
[1756550281850,2.50913125,202.13,202.02,7.72]
[1756550283242,2.50913125,202.07,201.99,7.72]
[1756550283645,0.09,202.07,201.99,7.72]
[1756550284948,2.41913125,202.08,202.0,7.72]
[1756550288147,2.41913125,202.05,202.0,7.72]
[1756550288354,0.08,202.04,202.0,7.72]
[1756550288852,0.08,202.04,201.96,7.94]
[1756550290049,123.42,202.11,201.99,7.94]
[1756550290050,2.41913125,202.1,201.99,7.94]
[1756550291355,2.41913125,202.1,201.99,2.41913125]
[1756550291552,2.41913125,202.1,202.0,7.94]
[1756550294056,2.49913125,202.11,202.0,7.94]
[1756550297155,0.08,202.11,202.0,7.94]
[1756550304363,0.08,202.11,202.0,12.07892355]
[1756550304567,0.08,202.11,202.01,7.94]
[1756550305468,0.08,202.11,202.01,4.13892355]
[1756550305668,0.08,202.11,202.02,7.94]
[1756550307362,0.08,202.08,202.02,7.94]
[1756550307563,0.08,202.05,201.99,7.94]
[1756550310071,2.41913125,202.06,201.99,7.94]
[1756550310471,2.41913125,202.06,202.0,7.94]
[1756550310772,2.47913125,202.08,202.0,7.94]
[1756550311267,2.41913125,202.1,202.0,4.13892355]
[1756550311471,2.41913125,202.1,202.01,7.94]
[1756550312068,0.06,202.09,202.01,7.94]
[1756550312366,2.47913125,202.07,202.01,7.94]
[1756550315665,2.41913125,202.07,201.98,4.15617451]
[1756550315865,2.41913125,202.1,201.96,7.94]
[1756550315866,2.47913125,202.04,201.96,7.94]
[1756550317483,0.08,202.0,201.96,7.94]
[1756550317776,0.08,202.0,201.94,7.56]
[1756550317978,2.41913125,202.01,201.94,7.56]
[1756550318782,2.49913125,202.01,201.94,7.56]
[1756550323484,2.41913125,202.01,201.94,7.56]
[1756550324793,2.41913125,202.04,201.94,4.15617451]
[1756550325092,2.41913125,202.04,201.95,7.56]
[1756550325588,2.49913125,202.06,201.95,11.71617451]
[1756550325793,2.49913125,202.06,201.96,7.56]
[1756550329297,2.41913125,202.05,201.96,7.56]
[1756550337603,2.41913125,202.05,201.97,7.56]
[1756550337801,2.41913125,202.09,201.98,4.15617451]
[1756550338003,2.41913125,202.09,201.99,7.56]
[1756550340005,2.41913125,202.09,202.0,7.56]
[1756550340307,0.08,202.14,202.03,7.56]
[1756550340502,2.49913125,202.14,202.03,7.56]
[1756550340806,2.49913125,202.14,202.04,7.56]
[1756550342409,2.41913125,202.14,202.06,7.56]
[1756550342707,332.84,202.15,202.06,7.56]
[1756550342909,2.49913125,202.14,202.06,7.56]
[1756550346710,2.41913125,202.14,202.06,7.56]
[1756550346909,2.41913125,202.17,202.08,7.56]
[1756550349109,0.08,202.18,202.08,7.56]
[1756550349406,122.72,202.19,202.1,7.99]
[1756550355314,0.09,202.21,202.13,7.99]
[1756550356316,28.01,202.24,202.13,7.99]
[1756550359120,27.92,202.24,202.13,7.99]
[1756550359321,0.09,202.23,202.13,7.99]
[1756550359520,27.92,202.24,202.13,7.99]
[1756550359721,0.09,202.23,202.13,7.99]
[1756550360317,2.41913125,202.22,202.13,7.99]
[1756550363217,0.09,202.23,202.16,7.99]
[1756550363723,124.75913125,202.26,202.16,7.99]
[1756550364722,0.09,202.25,202.16,7.99]
[1756550365625,0.09,202.22,202.16,7.99]
[1756550368918,2.48913125,202.26,202.16,7.99]
[1756550369125,124.72913125,202.26,202.16,7.99]
[1756550370118,0.07,202.25,202.16,7.99]
[1756550370317,124.65913125,202.26,202.16,7.99]
[1756550370523,0.07,202.22,202.16,7.99]
[1756550373322,122.18,202.24,202.16,7.99]
[1756550375527,122.18,202.24,202.16,10.40913125]
[1756550375830,122.18,202.24,202.17,7.99]
[1756550380133,0.07,202.23,202.17,7.99]
[1756550384033,122.18,202.24,202.17,7.99]
[1756550388238,0.07,202.28,202.19,7.98]
[1756550388543,122.21,202.28,202.19,7.98]
[1756550389937,122.21,202.28,202.19,12.13617451]
[1756550390834,122.21,202.28,202.2,7.98]
[1756550393341,122.21,202.28,202.2,12.13301566]
[1756550393744,122.21,202.28,202.2,12.13457057]
[1756550399350,0.07,202.27,202.2,12.13457057]
[1756550399743,0.07,202.26,202.17,4.15457057]
[1756550399949,0.07,202.26,202.18,4.15457057]
[1756550400245,0.07,202.26,202.19,7.98]
[1756550400543,0.07,202.26,202.19,12.13457057]
[1756550402342,0.07,202.26,202.2,7.98]
[1756550403645,2.41913125,202.26,202.18,4.15457057]
[1756550403851,0.07,202.25,202.16,12.13457057]
[1756550404050,2.41913125,202.23,202.16,12.13457057]
[1756550404242,0.07,202.22,202.16,12.13457057]
[1756550405659,0.07,202.22,202.16,7.98]
[1756550405854,0.07,202.22,202.15,4.15457057]
[1756550406053,2.41913125,202.23,202.15,4.15457057]
[1756550406456,0.07,202.22,202.15,4.15457057]
[1756550406654,0.07,202.22,202.15,12.13457057]
[1756550407255,2.41913125,202.23,202.15,12.13457057]
[1756550407462,2.41913125,202.2,202.14,4.15457057]
[1756550407658,0.07,202.19,202.13,4.15457057]
[1756550408360,0.07,202.19,202.12,12.13457057]
[1756550409663,2.41913125,202.2,202.12,7.98]
[1756550410160,0.07,202.19,202.12,7.98]
[1756550410361,2.41913125,202.2,202.12,7.98]
[1756550410861,0.07,202.19,202.12,7.98]
[1756550416271,2.41913125,202.21,202.12,7.98]
[1756550416762,2.41913125,202.21,202.13,7.98]
[1756550418668,2.41913125,202.21,202.14,7.98]
[1756550421571,0.07,202.23,202.14,7.98]
[1756550421766,0.07,202.23,202.14,12.13457057]
[1756550421964,0.07,202.23,202.15,7.98]
[1756550422661,0.07,202.26,202.16,12.13457057]
[1756550422867,0.07,202.26,202.17,7.98]
[1756550423775,0.07,202.26,202.19,7.98]
[1756550423976,2.41913125,202.27,202.19,7.98]
[1756550424265,2.41913125,202.27,202.21,7.98]
[1756550424972,0.05,202.26,202.18,7.98]
[1756550425369,2.41913125,202.24,202.18,7.98]
[1756550425670,2.41913125,202.24,202.15,7.98]
[1756550425671,0.05,202.23,202.15,7.98]
[1756550430267,2.41913125,202.24,202.15,7.98]
[1756550430669,2.41913125,202.24,202.16,7.98]
[1756550434371,0.05,202.26,202.18,7.98]
[1756550434569,0.86064053,202.34,202.19,12.13457057]
[1756550434570,0.05,202.3,202.19,12.13457057]
[1756550434775,0.05,202.3,202.2,7.98]
[1756550435477,0.05,202.3,202.2,12.13457057]
[1756550435776,0.05,202.3,202.21,7.98]
[1756550440981,0.05,202.3,202.22,8.0]
[1756550441778,2.41913125,202.33,202.22,8.0]
[1756550441978,0.0346752,202.28,202.25,8.0]
[1756550442278,0.0346752,202.28,202.24,0.03772244]
[1756550443082,0.0346752,202.28,202.25,8.0]
[1756550443279,0.0346752,202.28,202.24,0.03772244]
[1756550443480,0.0346752,202.28,202.25,8.0]
[1756550444083,0.0346752,202.28,202.24,0.03772244]
[1756550444483,0.0346752,202.28,202.25,8.0]
[1756550444683,0.0346752,202.28,202.24,0.03772244]
[1756550445283,0.0346752,202.28,202.25,8.0]
[1756550445582,0.0346752,202.28,202.24,0.03772244]
[1756550445784,0.0346752,202.28,202.25,8.0]
[1756550446185,0.0346752,202.28,202.24,0.03772244]
[1756550446384,0.0346752,202.28,202.25,8.0]
[1756550446683,0.0346752,202.28,202.24,0.03772244]
[1756550446878,0.0346752,202.28,202.25,8.0]
[1756550447085,0.0346752,202.28,202.24,0.03772244]
[1756550447285,0.0346752,202.28,202.25,8.0]
[1756550451281,0.0346752,202.28,202.24,2.45685369]
[1756550451488,0.0346752,202.28,202.25,8.0]
[1756550457491,0.0346752,202.28,202.27,2.41913125]
[1756550457795,403.54,202.36,202.28,8.0]
[1756550457996,71.16,202.36,202.28,8.0]
[1756550458694,0.1,202.35,202.28,8.0]
[1756550458895,0.1,202.35,202.3,0.03407674]
[1756550459194,71.16,202.36,202.3,0.03407674]
[1756550459591,2.41913125,202.34,202.3,0.03407674]
[1756550460488,0.1,202.35,202.3,0.03407674]
[1756550460695,0.1,202.34,202.3,0.03407674]
[1756550460892,2.41913125,202.35,202.3,0.03407674]
[1756550461093,0.1,202.33,202.3,0.03407674]
[1756550464496,2.41913125,202.34,202.3,0.03407674]
[1756550464888,0.1,202.33,202.3,0.03407674]
[1756550465894,2.41913125,202.34,202.3,0.03407674]
[1756550466100,0.1,202.33,202.3,0.03407674]
[1756550466600,2.41913125,202.34,202.3,0.03407674]
[1756550467501,0.09,202.33,202.3,0.03407674]
[1756550468194,2.41913125,202.34,202.3,0.03407674]
[1756550468495,0.09,202.33,202.3,0.03407674]
[1756550469499,2.41913125,202.34,202.3,0.03407674]
[1756550469699,0.09,202.33,202.3,0.03407674]
[1756550469899,2.41913125,202.34,202.3,0.03407674]
[1756550470203,0.09,202.33,202.3,0.03407674]
[1756550470902,2.41913125,202.34,202.3,0.03407674]
[1756550471101,0.09,202.33,202.3,0.03407674]
[1756550471801,2.41913125,202.34,202.3,0.03407674]
[1756550471999,2.41913125,202.31,202.3,0.03407674]
[1756550472304,2.50913125,202.31,202.3,0.03407674]
[1756550473197,0.09,202.3,202.21,11.49414241]
[1756550473403,2.41913125,202.27,202.21,7.35]
[1756550474099,0.09,202.28,202.21,7.35]
[1756550474398,2.41913125,202.3,202.22,7.35]
[1756550478298,2.41913125,202.3,202.22,11.49414241]
[1756550478699,2.41913125,202.3,202.22,7.35]
[1756550478896,0.09,202.29,202.22,7.35]
[1756550479301,0.09,202.29,202.22,11.49414241]
[1756550479527,0.09,202.26,202.22,4.14414241]
[1756550479804,0.09,202.23,202.2,7.35]
[1756550479997,2.41913125,202.24,202.18,4.14414241]
[1756550480397,2.41913125,202.24,202.19,7.35]
[1756550480601,2.41913125,202.24,202.18,4.14414241]
[1756550481203,2.41913125,202.24,202.17,4.14414241]
[1756550481398,2.41913125,202.24,202.18,7.35]
[1756550482503,2.41913125,202.24,202.18,4.14414241]
[1756550482706,2.41913125,202.24,202.19,7.35]
[1756550483002,2.41913125,202.24,202.18,7.35]
[1756550484007,2.41913125,202.24,202.18,11.49414241]
[1756550484209,2.41913125,202.24,202.18,4.14414241]
[1756550484410,2.41913125,202.24,202.19,7.35]
[1756550484706,2.41913125,202.28,202.21,4.14414241]
[1756550484907,2.41913125,202.28,202.22,7.35]
[1756550485703,2.53913125,202.28,202.22,7.35]
[1756550486904,2.41913125,202.25,202.22,7.35]
[1756550487110,0.12,202.24,202.2,7.35]
[1756550487513,2.41913125,202.25,202.2,7.35]
[1756550488010,0.12,202.24,202.2,7.35]
[1756550488813,0.12,202.24,202.18,7.35]
[1756550489107,2.41913125,202.25,202.18,7.35]
[1756550489608,0.12,202.27,202.18,7.35]
[1756550489813,2.41913125,202.26,202.19,7.35]
[1756550500220,2.41913125,202.29,202.2,4.14414241]
[1756550500525,2.41913125,202.29,202.21,7.9]
[1756550501415,2.41913125,202.29,202.22,7.9]
[1756550501617,2.41913125,202.32,202.22,7.9]
[1756550501815,2.41913125,202.32,202.24,7.9]
[1756550502015,0.86056604,202.34,202.24,7.9]
[1756550502016,2.41913125,202.35,202.25,7.9]
[1756550503024,2.51913125,202.36,202.25,7.9]
[1756550503222,2.51913125,202.36,202.26,7.9]
[1756550508027,2.51913125,202.36,202.26,6.56327366]
[1756550508325,2.51913125,202.36,202.27,7.9]
[1756550510528,2.41913125,202.36,202.27,7.9]
[1756550513028,2.41913125,202.39,202.3,7.9]
[1756550517238,2.41913125,202.42,202.3,7.9]
[1756550517428,0.1,202.38,202.3,7.9]
[1756550518239,2.41913125,202.36,202.3,7.9]
[1756550520138,2.51913125,202.36,202.3,7.9]
[1756550520837,2.41913125,202.35,202.26,2.41913125]
[1756550521034,2.41913125,202.35,202.27,7.9]
[1756550524040,2.51913125,202.35,202.27,7.9]
[1756550529945,0.09,202.42,202.27,7.9]
[1756550530146,2.41913125,202.39,202.3,7.78]
[1756550531648,332.32,202.43,202.33,7.78]
[1756550534946,332.32,202.43,202.33,12.2277]
[1756550535146,0.09,202.44,202.36,7.78]
[1756550536038,124.28913125,202.47,202.36,7.78]
[1756550536240,2.41913125,202.44,202.36,7.78]
[1756550536445,0.09,202.43,202.36,7.78]
[1756550538141,0.09,202.4,202.36,7.78]
[1756550538336,0.09,202.4,202.33,7.78]
[1756550539545,0.09,202.37,202.3,7.78]
[1756550541147,0.09,202.34,202.3,7.78]
[1756550541349,2.41913125,202.35,202.3,7.78]
[1756550541649,0.09,202.34,202.3,7.78]
[1756550542148,2.41913125,202.35,202.26,11.92414241]
[1756550542351,0.09,202.37,202.27,7.78]
[1756550543145,2.41913125,202.35,202.27,7.78]
[1756550543351,2.50913125,202.35,202.27,7.78]
[1756550544147,2.50913125,202.35,202.27,4.14414241]
[1756550544353,0.09,202.35,202.28,7.78]
[1756550544747,2.41913125,202.38,202.28,7.78]
[1756550544953,2.41913125,202.38,202.29,4.14414241]
[1756550545154,2.41913125,202.38,202.3,7.78]
[1756550545449,2.41913125,202.38,202.3,11.92414241]
[1756550545652,2.41913125,202.38,202.31,7.78]
[1756550546256,2.41913125,202.4,202.31,7.78]
[1756550546454,0.09,202.42,202.32,14.34327366]
[1756550546648,0.09,202.42,202.33,7.78]
[1756550548553,2.41913125,202.4,202.33,7.78]
[1756550553553,2.41913125,202.41,202.33,7.78]
[1756550555560,2.41913125,202.41,202.34,7.78]
[1756550556258,2.41913125,202.38,202.34,7.78]
[1756550556459,2.50913125,202.38,202.31,7.78]
[1756550579281,1.54791881,202.34,202.31,7.78]
[1756550582983,1.54791881,202.36,202.31,7.78]
[1756550585187,1.54791881,202.36,202.32,7.75]
[1756550585386,1.54791881,202.36,202.31,4.15239002]
[1756550585787,1.54791881,202.36,202.32,7.75]
[1756550586588,1.54791881,202.36,202.31,4.15239002]
[1756550586789,1.54791881,202.36,202.32,7.75]
[1756550586986,1.54791881,202.34,202.3,4.15239002]
[1756550587181,0.06,202.31,202.29,7.36]
[1756550587380,1.54791881,202.3,202.29,7.36]
[1756550588088,1.54791881,202.3,202.26,7.36]
[1756550588286,1.54791881,202.28,202.23,4.15239002]
[1756550588492,0.06,202.23,202.19,7.36]
[1756550588680,1.54791881,202.2,202.17,11.51239002]
[1756550588885,1.54791881,202.18,202.17,11.51239002]
[1756550589087,1.54791881,202.18,202.17,7.36]
[1756550589380,2.48277027,202.2,202.17,7.36]
[1756550590291,2.48277027,202.2,202.13,11.51239002]
[1756550590591,2.42277027,202.17,202.11,7.36]
[1756550591390,2.48277027,202.17,202.11,7.36]
[1756550592091,0.06,202.17,202.11,7.36]
[1756550592292,2.42277027,202.16,202.1,7.36]
[1756550595395,2.42277027,202.13,202.1,7.36]
[1756550595994,2.48277027,202.13,202.1,7.36]
[1756550597596,2.42277027,202.16,202.04,7.36]
[1756550599699,2.42277027,202.13,202.04,7.36]
[1756550604403,2.78,202.17,202.04,7.36]
[1756550604404,2.42277027,202.1,202.04,7.36]
[1756550605105,0.1,202.06,201.97,7.36]
[1756550607505,2.42277027,202.12,202.02,7.36]
[1756550609211,0.1,202.15,202.02,7.36]
[1756550609404,2.42277027,202.14,202.02,7.36]
[1756550611112,2.42277027,202.14,202.02,2.42277027]
[1756550611316,2.42277027,202.14,202.03,7.36]
[1756550611719,2.42277027,202.11,202.03,7.36]
[1756550612315,0.1,202.07,202.03,7.36]
[1756550613716,0.1,202.07,201.95,9.78277027]
[1756550613914,0.1,202.07,201.96,7.36]
[1756550614313,2.42277027,202.05,201.96,7.36]
[1756550616517,0.1,202.04,201.96,7.36]
[1756550616714,24.58,202.07,201.96,7.36]
[1756550616916,2.42277027,202.05,201.96,7.36]
[1756550618818,2.53277027,202.05,201.96,7.36]
[1756550620613,2.42277027,202.08,201.97,7.59]
[1756550623223,2.42277027,202.05,201.97,7.59]
[1756550624524,0.11,202.07,201.97,7.59]
[1756550627422,2.42277027,202.08,201.97,7.59]
[1756550633330,2.42277027,202.08,201.99,7.59]
[1756550633727,0.11,202.1,201.99,10.01277027]
[1756550633924,0.11,202.1,202.0,7.59]
[1756550634229,0.11,202.1,202.02,2.42277027]
[1756550634528,0.11,202.1,202.03,7.59]
[1756550641428,2.42277027,202.12,202.03,7.59]
[1756550641631,2.53277027,202.09,202.03,7.59]
[1756550646635,2.53277027,202.15,202.04,2.42277027]
[1756550646838,2.53277027,202.15,202.05,7.59]
[1756550647341,2.53277027,202.15,202.06,7.82]
[1756550648933,2.42277027,202.15,202.06,11.92534475]
[1756550649139,2.52277027,202.18,202.08,4.10534475]
[1756550649336,2.52277027,202.18,202.1,7.82]
[1756550649638,2.52277027,202.18,202.07,4.10534475]
[1756550649639,0.1,202.14,202.07,4.10534475]
[1756550649945,0.1,202.14,202.08,7.82]
[1756550650637,2.42277027,202.15,202.08,7.82]
[1756550650843,2.52277027,202.18,202.08,4.10534475]
[1756550651142,2.52277027,202.18,202.09,7.82]
[1756550651938,0.1,202.23,202.09,7.82]
[1756550652143,2.42277027,202.21,202.1,7.82]
[1756550652340,124.12277027,202.21,202.1,11.92534475]
[1756550652540,124.12277027,202.21,202.11,7.82]
[1756550653044,0.1,202.23,202.13,7.82]
[1756550653637,0.1,202.23,202.13,4.10534475]
[1756550653837,0.1,202.23,202.14,7.82]
[1756550657254,2.52277027,202.23,202.14,7.82]
[1756550657547,124.10277027,202.25,202.14,7.82]
[1756550657745,124.10277027,202.25,202.15,7.82]
[1756550663862,2.42277027,202.25,202.15,7.82]
[1756550666664,0.1,202.26,202.16,2.42277027]
[1756550666861,0.1,202.26,202.17,7.82]
[1756550668659,2.42277027,202.28,202.17,7.82]
[1756550668858,2.42277027,202.28,202.2,7.82]
[1756550669860,0.09,202.27,202.2,7.82]
[1756550672066,2.42277027,202.28,202.2,7.82]
[1756550672362,335.09277027,202.31,202.2,7.82]
[1756550673066,335.09277027,202.31,202.22,7.82]
[1756550677562,0.06,202.3,202.22,7.82]
[1756550679762,456.58277027,202.31,202.23,7.84]
[1756550679960,124.00277027,202.31,202.23,7.84]
[1756550682466,121.58,202.31,202.23,7.84]
[1756550683665,121.58,202.31,202.22,2.42277027]
[1756550683666,121.58,202.31,202.25,2.42277027]
[1756550684259,121.58,202.31,202.22,2.42277027]
[1756550684463,121.58,202.31,202.23,7.84]
[1756550684663,0.06,202.33,202.24,4.4497]
[1756550684866,0.06,202.33,202.25,7.84]
[1756550686266,0.06,202.33,202.25,10.26277027]
[1756550687366,0.06,202.33,202.26,7.84]
[1756550688766,0.06,202.32,202.26,7.84]
[1756550689867,2.42277027,202.33,202.19,7.84]
[1756550690067,0.06,202.29,202.19,7.84]
[1756550694464,0.06,202.29,202.2,7.84]
[1756550696074,0.06,202.29,202.2,11.94534475]
[1756550696476,0.06,202.29,202.21,7.84]
[1756550698781,0.06,202.32,202.22,7.84]
[1756550700381,0.06,202.32,202.22,11.94534475]
[1756550700584,0.06,202.32,202.23,7.84]
[1756550700874,0.06,202.29,202.23,7.84]
[1756550701286,0.06,202.26,202.19,11.94534475]
[1756550701472,0.06,202.23,202.19,7.84]
[1756550701671,0.06,202.23,202.17,7.84]
[1756550701876,2.42277027,202.24,202.17,4.10534475]
[1756550702072,2.42277027,202.24,202.18,7.84]
[1756550702283,2.42277027,202.24,202.18,11.94534475]
[1756550702584,2.42277027,202.24,202.18,7.84]
[1756550703485,0.06,202.23,202.16,4.10534475]
[1756550703685,0.06,202.23,202.14,11.94534475]
[1756550703883,0.06,202.23,202.15,4.10534475]
[1756550704080,0.06,202.23,202.14,11.94534475]
[1756550704281,2.42277027,202.21,202.14,11.94534475]
[1756550711382,2.42277027,202.21,202.15,7.45]
[1756550713389,2.42277027,202.26,202.17,7.45]
[1756550716588,2.42277027,202.26,202.17,11.55534475]
[1756550716792,2.42277027,202.29,202.2,4.10534475]
[1756550716993,2.42277027,202.29,202.21,7.45]
[1756550717293,0.08,202.31,202.21,7.45]
[1756550717493,0.08,202.31,202.22,2.42277027]
[1756550717689,89.3230238,202.34,202.23,7.45]
[1756550717888,0.08,202.31,202.23,7.45]
[1756550720293,2.42277027,202.32,202.23,7.45]
[1756550720590,2.50277027,202.32,202.23,7.45]
[1756550722393,0.08,202.31,202.23,7.45]
[1756550723390,89.3230238,202.34,202.24,7.45]
[1756550723593,2.50277027,202.35,202.24,7.45]
[1756550725093,2.50277027,202.35,202.25,7.45]
[1756550729296,0.08,202.35,202.25,7.45]
[1756550729498,2.50277027,202.35,202.25,7.45]
[1756550730498,2.42277027,202.32,202.25,7.45]
[1756550730696,0.08,202.28,202.22,7.45]
[1756550730892,0.08,202.25,202.19,7.45]
[1756550731095,2.42277027,202.23,202.16,7.45]
[1756550739004,8.24,202.25,202.16,7.45]
[1756550739005,8.16,202.25,202.16,7.45]
[1756550739200,8.16,202.25,202.17,7.37]
[1756550742006,0.09,202.28,202.19,2.42277027]
[1756550742309,0.09,202.28,202.2,7.37]
[1756550742605,2.42277027,202.29,202.2,7.37]
[1756550743609,2.42277027,202.32,202.21,7.37]
[1756550745206,2.42277027,202.32,202.23,7.37]
[1756550750013,2.51277027,202.29,202.23,7.37]
[1756550750214,2.51277027,202.29,202.19,4.10534475]
[1756550750512,0.09,202.28,202.19,7.37]
[1756550754110,0.09,202.28,202.19,11.47534475]
[1756550754311,2.42277027,202.32,202.22,7.37]
[1756550759214,2.42277027,202.32,202.22,4.10534475]
[1756550759410,2.42277027,202.32,202.23,7.37]
[1756550761018,0.09,202.33,202.25,7.37]
[1756550766615,0.8605554,202.37,202.25,7.37]
[1756550766820,2.51277027,202.46,202.34,11.47534475]
[1756550767018,2.51277027,202.46,202.36,7.37]
[1756550767617,2.51277027,202.46,202.37,5.2077272]
[1756550767915,2.42277027,202.43,202.38,5.2077272]
[1756550768115,2.42277027,202.43,202.39,5.2077272]
[1756550768322,0.93,202.42,202.4,5.2077272]
[1756550768521,0.93,202.42,202.41,5.2077272]
[1756550768720,2.42277027,202.45,202.41,12.5077272]
[1756550768912,5.50375515,202.55,202.42,12.5077272]
[1756550769117,2.42277027,202.49,202.43,4.66616423]
[1756550769317,0.93,202.48,202.42,7.3]
[1756550769518,0.93,202.48,202.43,4.66152484]
[1756550769718,0.93,202.48,202.4,7.3]
[1756550769919,0.93,202.48,202.41,4.66152484]
[1756550770224,2.42277027,202.51,202.43,7.3]
[1756550770427,2.42277027,202.51,202.44,4.65779889]
[1756550770619,2.42277027,202.51,202.45,4.65779889]
[1756550770820,2.42277027,202.51,202.43,7.3]
[1756550771127,2.42277027,202.51,202.44,4.65774438]
[1756550771427,2.42277027,202.51,202.43,7.3]
[1756550771718,2.42277027,202.48,202.39,7.3]
[1756550771923,2.42277027,202.45,202.4,4.65366713]
[1756550772115,0.93,202.44,202.35,7.3]
[1756550772318,0.93,202.44,202.36,4.65419266]
[1756550772522,0.93,202.44,202.35,7.3]
[1756550772720,2.42277027,202.42,202.36,4.56502863]
[1756550772920,2.42277027,202.42,202.35,7.3]
[1756550773123,2.42277027,202.43,202.36,4.56522513]
[1756550773323,2.42277027,202.43,202.35,7.3]
[1756550773524,2.42277027,202.43,202.36,4.56373929]
[1756550773726,2.42277027,202.43,202.35,7.3]